bitfinex/quotes_BTCUSD_20260221
["timestamp","ask_amount","ask_price","bid_price","bid_amount"]
[1771698064780,0.14702034,68555.0,68551.0,0.07293823]
[1771698064981,0.00031639,68555.0,68552.0,0.07293716]
[1771698065184,0.1754,68570.0,68557.0,0.2195207]
[1771698065395,0.1754,68570.0,68557.0,0.00050475]
[1771698065396,0.0962878,68568.0,68557.0,0.00050475]
[1771698065739,0.03703048,68567.0,68557.0,0.00050475]
[1771698065936,0.02336678,68567.0,68557.0,0.00050475]
[1771698066237,0.02336678,68567.0,68557.0,0.07343628]
[1771698066444,0.02336678,68566.0,68557.0,0.07293153]
[1771698066936,0.17578825,68570.0,68554.0,0.07293441]
[1771698067182,0.02336678,68567.0,68557.0,0.07293109]
[1771698067833,0.02320724,68567.0,68557.0,0.07293109]
[1771698068618,0.02498908,68566.0,68557.0,0.07293109]
[1771698070351,0.02598908,68566.0,68557.0,0.07293109]
[1771698070944,0.02566998,68566.0,68557.0,0.07293109]
[1771698072409,0.09859258,68566.0,68557.0,0.07293109]
[1771698072595,0.02444885,68565.0,68557.0,0.07293109]
[1771698073122,0.02428934,68565.0,68557.0,0.07293109]
[1771698073899,0.02528934,68565.0,68557.0,0.07293109]
[1771698074550,0.07392375,68565.0,68555.0,0.07293414]
[1771698074851,0.02428926,68564.0,68556.0,0.07293294]
[1771698075033,0.09721452,68564.0,68554.0,0.07293428]
[1771698075233,0.07292526,68564.0,68554.0,0.07293428]
[1771698075437,0.09737531,68563.0,68554.0,0.07293428]
[1771698075819,0.07293038,68559.0,68550.0,0.07309866]
[1771698076009,0.02444885,68558.0,68550.0,0.07309866]
[1771698077058,0.17002531,68558.0,68550.0,0.07309866]
[1771698077298,0.14557646,68557.0,68550.0,0.07309866]
[1771698077498,0.02644885,68558.0,68550.0,0.07309866]
[1771698077676,0.17201886,68558.0,68550.0,0.07309866]
[1771698077859,0.14557001,68557.0,68550.0,0.07309866]
[1771698078067,0.14557001,68556.0,68550.0,0.07309866]
[1771698078247,0.02644885,68558.0,68550.0,0.07309866]
[1771698078642,0.17201313,68558.0,68550.0,0.07309866]
[1771698078843,0.14556428,68557.0,68550.0,0.07309866]
[1771698079050,0.02544885,68558.0,68551.0,0.07293836]
[1771698079249,0.14656434,68558.0,68547.0,0.07294158]
[1771698079467,0.14557796,68557.0,68551.0,0.07293824]
[1771698079671,0.14557796,68556.0,68551.0,0.07293824]
[1771698079872,0.02444885,68558.0,68551.0,0.07293824]
[1771698080090,0.02428932,68558.0,68551.0,0.07293824]
[1771698080981,0.16986707,68558.0,68551.0,0.07293824]
[1771698082507,0.16986707,68558.0,68551.0,0.07393824]
[1771698082717,0.16986707,68558.0,68551.0,0.07293824]
[1771698083007,0.16986707,68558.0,68551.0,0.07393824]
[1771698083210,0.16986707,68558.0,68551.0,0.07293824]
[1771698083509,0.16986707,68558.0,68551.0,0.07393824]
[1771698084012,0.16986707,68558.0,68551.0,0.001]
[1771698084519,0.02444885,68557.0,68551.0,0.001]
[1771698084738,0.14557775,68557.0,68551.0,0.001]
[1771698084944,0.02444885,68557.0,68551.0,0.001]
[1771698085459,0.02444885,68557.0,68550.0,0.07293917]
[1771698085628,0.02444885,68557.0,68551.0,0.07393829]
[1771698086431,0.02444885,68557.0,68551.0,0.07293829]
[1771698086736,0.02444885,68557.0,68551.0,0.07393829]
[1771698087085,0.02444885,68557.0,68551.0,0.07293829]
[1771698087429,0.02444885,68557.0,68551.0,0.07393829]
[1771698087796,0.02444885,68557.0,68551.0,0.07415829]
[1771698087992,0.09738092,68557.0,68547.0,0.22655752]
[1771698088217,0.09738092,68557.0,68549.0,0.07293975]
[1771698088411,0.09738092,68557.0,68550.0,0.07293934]
[1771698088781,0.09738092,68557.0,68551.0,0.001]
[1771698088983,0.09738092,68557.0,68550.0,0.07293934]
[1771698089205,0.02444885,68557.0,68550.0,0.07293934]
[1771698089729,0.17021195,68557.0,68550.0,0.07293934]
[1771698090134,0.17021195,68557.0,68551.0,0.001]
[1771698090327,0.17021195,68557.0,68550.0,0.07293934]
[1771698090530,0.17021195,68557.0,68550.0,0.07393934]
[1771698090728,0.17021195,68557.0,68551.0,0.07293838]
[1771698092008,0.17040595,68557.0,68551.0,0.07293838]
[1771698093266,0.17040595,68557.0,68551.0,0.07393838]
[1771698093469,0.17040595,68557.0,68551.0,0.07293838]
[1771698093651,0.17040595,68557.0,68551.0,0.07393838]
[1771698094742,0.1457631,68556.0,68551.0,0.07393838]
[1771698094934,0.1457631,68555.0,68552.0,0.07293709]
[1771698095116,0.000194,68556.0,68552.0,0.07293709]
[1771698095523,0.000194,68556.0,68552.0,0.22655274]
[1771698096166,0.000194,68556.0,68553.0,0.07293547]
[1771698096344,0.1460906,68556.0,68553.0,0.07293547]
[1771698096544,0.1458966,68555.0,68553.0,0.07293547]
[1771698096798,0.000194,68556.0,68553.0,0.07293547]
[1771698097376,0.000194,68556.0,68553.0,0.001]
[1771698098651,0.000194,68556.0,68552.0,0.22655274]
[1771698098855,0.000194,68556.0,68553.0,0.001]
[1771698099700,0.14610671,68556.0,68552.0,0.07293709]
[1771698099907,0.14591271,68555.0,68552.0,0.07293709]
[1771698100103,0.000194,68556.0,68552.0,0.07293709]
[1771698100618,0.000194,68556.0,68553.0,0.001]
[1771698101519,0.09715963,68560.0,68553.0,0.07393617]
[1771698102348,0.09715963,68560.0,68553.0,0.07293617]
[1771698103234,0.09715963,68560.0,68553.0,0.07393617]
[1771698103386,0.09715963,68560.0,68553.0,0.07293617]
[1771698103806,0.0002,68556.0,68553.0,0.07293617]
[1771698104333,0.0002,68556.0,68553.0,0.07393617]
[1771698105042,0.00016,68560.0,68558.0,0.07292988]
[1771698105241,0.07312323,68566.0,68553.0,0.29274081]
[1771698105242,0.0002,68566.0,68555.0,0.17024844]
[1771698105440,0.02427048,68569.0,68562.0,0.07292608]
[1771698105785,0.02427048,68569.0,68563.0,0.07292557]
[1771698106389,0.02427048,68569.0,68562.0,0.07292631]
[1771698106812,0.02427048,68569.0,68563.0,0.001]
[1771698108574,0.09718976,68569.0,68563.0,0.001]
[1771698108929,0.09718976,68569.0,68562.0,0.07292631]
[1771698109126,0.17578825,68570.0,68564.0,0.17024844]
[1771698109367,0.17578825,68570.0,68566.0,0.17024844]
[1771698110482,0.04678675,68576.0,68567.0,0.07292052]
[1771698110483,0.07291391,68575.0,68567.0,0.07292052]
[1771698110680,0.07298749,68575.0,68567.0,0.07292052]
[1771698110828,0.07291407,68574.0,68567.0,0.07292052]
[1771698111478,0.07298749,68575.0,68568.0,0.07292025]
[1771698111686,0.07298749,68575.0,68565.0,0.07292281]
[1771698111687,0.07291413,68574.0,68566.0,0.07292243]
[1771698112354,0.07291413,68574.0,68567.0,0.0729207]
[1771698112851,0.001,68574.0,68568.0,0.07292026]
[1771698113075,0.07298652,68575.0,68568.0,0.07292026]
[1771698113317,0.07298652,68575.0,68565.0,0.17024844]
[1771698113318,0.00028997,68585.0,68580.0,0.00016]
[1771698113440,0.00028997,68585.0,68580.0,1.501e-05]
[1771698113641,0.00028997,68585.0,68580.0,0.07292226]
[1771698113890,0.07289247,68595.0,68580.0,1.501e-05]
[1771698114094,0.07289267,68594.0,68583.0,0.07290402]
[1771698114324,0.07289479,68592.0,68583.0,0.07290402]
[1771698114883,0.09696527,68592.0,68583.0,0.07290402]
[1771698116343,0.09796527,68592.0,68583.0,0.07290402]
[1771698116514,0.07289592,68591.0,68583.0,0.07290402]
[1771698117723,0.07289479,68592.0,68580.0,1.501e-05]
[1771698117922,0.02271627,68590.0,68580.0,1.501e-05]
[1771698118118,0.07290102,68587.0,68580.0,1.501e-05]
[1771698119289,0.07390102,68587.0,68580.0,1.501e-05]
[1771698119588,0.07290102,68587.0,68580.0,1.501e-05]
[1771698120202,0.07290117,68586.0,68580.0,1.501e-05]
[1771698121031,0.07290543,68582.0,68580.0,1.501e-05]
[1771698121230,0.19274569,68585.0,68580.0,1.501e-05]
[1771698121231,0.0729047,68583.0,68580.0,1.501e-05]
[1771698121432,0.19274569,68585.0,68580.0,1.501e-05]
[1771698121433,0.07290572,68582.0,68580.0,1.501e-05]
[1771698121727,0.07290471,68583.0,68580.0,1.501e-05]
[1771698121935,0.16867521,68584.0,68570.0,0.00016]
[1771698122138,0.07290842,68580.0,68570.0,0.00016]
[1771698122343,0.00016,68590.0,68570.0,0.00016]
[1771698122344,0.02287627,68590.0,68574.0,0.01772064]
[1771698122539,0.02287627,68590.0,68580.0,0.001]
[1771698122761,0.07290646,68582.0,68574.0,0.07291391]
[1771698122961,0.07290646,68582.0,68575.0,0.07291269]
[1771698124292,0.02407048,68581.0,68570.0,0.00016]
[1771698124466,0.09698363,68575.0,68570.0,0.00016]
[1771698124668,0.07291416,68574.0,68570.0,0.00016]
[1771698125242,0.07291615,68572.0,68570.0,0.00016]
[1771698125446,0.07291605,68572.0,68566.0,0.00022]
[1771698125897,0.07291605,68572.0,68570.0,0.001]
[1771698126070,0.07291605,68572.0,68566.0,0.00029358]
[1771698126251,0.02407048,68574.0,68566.0,0.00029358]
[1771698126457,0.0729193,68569.0,68566.0,0.00029358]
[1771698127699,0.19139148,68576.0,68561.0,0.07292775]
[1771698127700,0.07291393,68575.0,68561.0,0.07292775]
[1771698127866,0.07291922,68570.0,68561.0,0.07292775]
[1771698128067,0.07291949,68569.0,68561.0,0.07292775]
[1771698128776,0.07291949,68569.0,68566.0,0.001]
[1771698129163,0.07291949,68569.0,68561.0,0.07292775]
[1771698129518,0.07292112,68568.0,68560.0,0.07308829]
[1771698129878,0.02271627,68571.0,68560.0,0.00016]
[1771698130078,0.07292268,68566.0,68560.0,0.00016]
[1771698131070,0.07292169,68567.0,68560.0,0.07308874]
[1771698131272,0.29166677,68572.0,68560.0,0.07308874]
[1771698132575,0.07292076,68568.0,68560.0,0.07308874]
[1771698134249,0.07292076,68568.0,68560.0,0.07330874]
[1771698135186,0.07292076,68568.0,68560.0,0.07430874]
[1771698135834,0.07292076,68568.0,68561.0,0.07292769]
[1771698136607,0.09563505,68570.0,68562.0,0.07292595]
[1771698137706,0.07291929,68569.0,68562.0,0.07292595]
[1771698138648,0.07291929,68569.0,68562.0,0.07392595]
[1771698138853,0.07291929,68569.0,68562.0,0.07292595]
[1771698139049,0.07291929,68569.0,68562.0,0.07392595]
[1771698143193,0.07291929,68569.0,68562.0,0.07414595]
[1771698145405,0.07291929,68569.0,68562.0,0.07314595]
[1771698145914,0.07291929,68569.0,68562.0,0.07414595]
[1771698146209,0.07291878,68570.0,68563.0,0.0729255]
[1771698146577,0.02446338,68571.0,68563.0,0.0729255]
[1771698147194,0.02446338,68571.0,68563.0,0.0739255]
[1771698147585,0.07291819,68570.0,68563.0,0.0729255]
[1771698148029,0.07291819,68570.0,68563.0,0.0739255]
[1771698148205,0.11614521,68583.0,68563.0,0.0739255]
[1771698148206,0.07291109,68577.0,68564.0,0.01772064]
[1771698148519,0.09737283,68579.0,68571.0,0.07291686]
[1771698149016,0.07306826,68580.0,68568.0,0.07291935]
[1771698149317,0.00016,68580.0,68570.0,0.07291737]
[1771698149523,0.02462338,68580.0,68570.0,0.07291737]
[1771698149722,0.07291058,68579.0,68571.0,0.07291627]
[1771698150022,0.07291039,68578.0,68570.0,0.07291737]
[1771698150417,0.09737396,68579.0,68571.0,0.07291615]
[1771698150626,0.18462514,68596.0,68580.0,0.00016]
[1771698150824,0.02446338,68583.0,68577.0,0.07291065]
[1771698151003,0.20905652,68583.0,68577.0,0.07291065]
[1771698151186,0.18459314,68582.0,68577.0,0.07290987]
[1771698151749,0.18459314,68582.0,68578.0,0.07290937]
[1771698151954,0.07289983,68588.0,68571.0,0.29166771]
[1771698152173,0.25749297,68588.0,68572.0,0.01772064]
[1771698152350,0.25749297,68588.0,68578.0,0.07290967]
[1771698152806,0.25762467,68588.0,68578.0,0.07290967]
[1771698153207,0.07303153,68588.0,68580.0,0.07290675]
[1771698157074,0.07290012,68587.0,68580.0,0.07290675]
[1771698157479,0.07290012,68587.0,68580.0,0.0713719]
[1771698157642,0.0001317,68587.0,68581.0,0.07290636]
[1771698158045,0.0001317,68587.0,68580.0,0.0713719]
[1771698158512,0.07303183,68587.0,68580.0,0.0713719]
[1771698160129,0.0001317,68587.0,68573.0,0.01772064]
[1771698160260,0.07290382,68584.0,68576.0,0.07291091]
[1771698160469,0.07290382,68584.0,68577.0,0.07291054]
[1771698160696,0.07290382,68584.0,68577.0,0.07277839]
[1771698160908,0.07303393,68585.0,68577.0,0.07277839]
[1771698161554,0.07303393,68585.0,68577.0,0.0726335]
[1771698162337,0.07290151,68586.0,68579.0,0.07290858]
[1771698164870,0.07290047,68587.0,68579.0,0.07290858]
[1771698166450,0.07290047,68587.0,68579.0,0.07312858]
[1771698166833,0.07290127,68586.0,68579.0,0.07312858]
[1771698167573,0.26212629,68586.0,68579.0,0.00022]
[1771698167777,0.26212629,68586.0,68578.0,0.07290945]
[1771698169260,0.18922502,68586.0,68577.0,0.07291053]
[1771698169459,0.07290329,68585.0,68576.0,0.07291163]
[1771698169653,0.07290011,68587.0,68572.0,0.07313601]
[1771698169859,0.07290705,68581.0,68573.0,0.07291493]
[1771698170148,0.07290705,68581.0,68572.0,0.07313401]
[1771698171113,0.18922502,68582.0,68575.0,0.07291204]
[1771698171436,0.18922502,68581.0,68575.0,0.07291204]
[1771698172230,0.26213171,68581.0,68574.0,0.07291384]
[1771698172391,0.18922502,68581.0,68575.0,0.07291267]
[1771698172591,0.18922502,68581.0,68574.0,0.07291384]
[1771698173389,0.26213177,68581.0,68574.0,0.07291384]
[1771698174011,0.18922502,68581.0,68573.0,0.07291294]
[1771698174620,0.18922502,68581.0,68575.0,0.07291268]
[1771698174817,0.07290554,68582.0,68575.0,0.07291268]
[1771698175019,0.07290445,68583.0,68575.0,0.07291268]
[1771698175256,0.26212947,68583.0,68575.0,0.07291268]
[1771698175929,0.07290445,68583.0,68575.0,0.07391268]
[1771698176131,0.07290557,68582.0,68575.0,0.07291268]
[1771698176743,0.07290656,68581.0,68574.0,0.07291195]
[1771698177349,0.07290557,68582.0,68574.0,0.07291195]
[1771698178424,0.07290557,68582.0,68575.0,0.001]
[1771698178631,0.07290557,68582.0,68574.0,0.07291195]
[1771698180231,0.26213059,68582.0,68574.0,0.07391195]
[1771698181444,0.26213059,68582.0,68574.0,0.07291195]
[1771698181645,0.18942502,68582.0,68574.0,0.07291195]
[1771698182185,0.18942502,68582.0,68574.0,0.07391195]
[1771698182485,0.26233052,68582.0,68575.0,0.07291255]
[1771698183094,0.0002,68582.0,68579.0,0.07290855]
[1771698184172,0.0002,68582.0,68578.0,0.07290933]
[1771698184575,0.18922502,68588.0,68574.0,0.01772064]
[1771698184873,0.26212417,68588.0,68581.0,0.07290564]
[1771698185072,0.07290061,68587.0,68580.0,0.07290722]
[1771698185975,0.07290011,68587.0,68579.0,0.07290792]
[1771698186758,0.07290011,68587.0,68580.0,0.07290713]
[1771698187651,0.07290143,68586.0,68579.0,0.07290792]
[1771698187849,0.07290032,68587.0,68579.0,0.07290792]
[1771698188093,0.26212417,68588.0,68579.0,0.07290792]
[1771698188801,0.07290271,68585.0,68578.0,0.07290761]
[1771698189112,0.07290148,68586.0,68577.0,0.07290874]
[1771698189749,0.07290362,68584.0,68577.0,0.07290874]
[1771698189881,0.07290452,68583.0,68576.0,0.07291176]
[1771698190283,0.25788839,68584.0,68576.0,0.07291176]
[1771698191189,0.25788839,68584.0,68577.0,0.07291041]
[1771698191454,0.18498477,68584.0,68577.0,0.07291041]
[1771698191747,0.18498477,68584.0,68572.0,0.00022]
[1771698191748,0.07390143,68586.0,68579.0,0.07290818]
[1771698191954,0.07310047,68587.0,68580.0,0.07290752]
[1771698192096,0.0002,68587.0,68580.0,0.07290752]
[1771698192302,0.07310051,68587.0,68580.0,0.07290752]
[1771698192730,0.001,68584.0,68580.0,0.07290752]
[1771698192913,0.07310051,68587.0,68580.0,0.07290752]
[1771698193127,0.07310051,68587.0,68577.0,0.0906307]
[1771698193128,0.0002,68587.0,68577.0,0.18127621]
[1771698193297,0.0012,68587.0,68583.0,0.07290378]
[1771698195114,0.0002,68587.0,68583.0,0.07290378]
[1771698195334,0.37116915,68600.0,68582.0,0.01772064]
[1771698195511,0.07288963,68597.0,68589.0,0.07289727]
[1771698196941,0.07388963,68597.0,68589.0,0.07289727]
[1771698198154,0.07288871,68598.0,68586.0,0.29160289]
[1771698198355,0.01116,68600.0,68586.0,0.01772064]
[1771698198565,1e-08,68604.0,68593.0,0.01772064]
[1771698198736,1e-08,68604.0,68596.0,0.01772064]
[1771698199144,1e-08,68604.0,68603.0,0.07288311]
[1771698199441,1e-08,68604.0,68590.0,0.00016]
[1771698199442,0.18588915,68599.0,68580.0,0.00016]
[1771698199639,0.00016,68600.0,68582.0,0.072905]
[1771698199640,0.16355557,68590.0,68582.0,0.072905]
[1771698199912,0.25878528,68591.0,68582.0,0.072905]
[1771698200095,0.18588915,68591.0,68584.0,0.0729032]
[1771698200252,0.18588915,68591.0,68583.0,0.07290403]
[1771698200459,0.18588915,68591.0,68584.0,0.07290315]
[1771698200653,0.18588915,68591.0,68585.0,0.07290147]
[1771698201090,0.18588915,68591.0,68584.0,0.07290315]
[1771698201468,0.18588915,68591.0,68585.0,0.07290213]
[1771698201672,0.001,68590.0,68584.0,0.07290315]
[1771698202088,0.25878502,68591.0,68584.0,0.07290315]
[1771698202405,0.18588915,68591.0,68584.0,0.07290315]
[1771698203015,0.18588915,68591.0,68584.0,0.07490315]
[1771698203160,0.18588915,68591.0,68584.0,0.07390315]
[1771698204099,0.18588915,68591.0,68584.0,0.07290315]
[1771698204418,0.18608915,68591.0,68585.0,0.07290145]
[1771698205022,0.0002,68591.0,68586.0,0.07290106]
[1771698206731,0.0002,68591.0,68586.0,0.07390106]
[1771698207117,0.0002,68591.0,68580.0,0.00016]
[1771698207118,0.02250012,68589.0,68580.0,0.00016]
[1771698207320,0.25879129,68586.0,68580.0,0.00016]
[1771698207672,0.20838927,68583.0,68579.0,0.00022]
[1771698207875,0.07290687,68581.0,68574.0,0.17512]
[1771698208078,0.25879602,68581.0,68574.0,0.17512]
[1771698208416,0.07290763,68580.0,68574.0,0.17512]
[1771698208620,0.31445249,68590.0,68574.0,0.12787565]
[1771698208845,0.09541079,68578.0,68570.0,0.07307814]
[1771698209168,0.07291076,68577.0,68570.0,0.00016]
[1771698209523,0.25879827,68579.0,68570.0,0.07307758]
[1771698210125,0.07290993,68578.0,68570.0,0.07307758]
[1771698210518,0.07290993,68578.0,68571.0,0.07291687]
[1771698210717,0.07290993,68578.0,68565.0,0.01794064]
[1771698210718,0.07291269,68576.0,68568.0,0.07291993]
[1771698210982,0.02250012,68574.0,68568.0,0.07291993]
[1771698211158,0.09541467,68574.0,68566.0,0.07292211]
[1771698211359,0.02250012,68574.0,68567.0,0.00022]
[1771698211567,0.20838927,68573.0,68567.0,0.00022]
[1771698211950,0.28130502,68573.0,68567.0,0.00022]
[1771698213264,0.28130502,68573.0,68567.0,0.00035409]
[1771698216254,0.20838927,68573.0,68567.0,0.00035409]
[1771698216459,0.02250012,68573.0,68567.0,0.07327463]
[1771698216655,0.00010179,68573.0,68567.0,0.00035409]
[1771698216860,0.07290871,68579.0,68567.0,0.00035409]
[1771698217106,0.07290933,68579.0,68569.0,0.07291829]
[1771698217306,0.07306783,68580.0,68571.0,0.07291637]
[1771698217524,0.07290861,68579.0,68571.0,0.07291637]
[1771698218061,0.001,68573.0,68571.0,0.07291637]
[1771698218260,0.07290979,68578.0,68570.0,0.07291608]
[1771698219227,0.07290979,68578.0,68571.0,0.001]
[1771698219597,0.07290979,68578.0,68570.0,0.07291608]
[1771698221614,0.07291071,68579.0,68571.0,0.07291658]
[1771698222213,0.07290982,68578.0,68571.0,0.07291658]
[1771698222756,0.07291101,68577.0,68570.0,0.07291818]
[1771698222975,0.07291185,68576.0,68569.0,0.07291923]
[1771698223277,0.07291101,68577.0,68569.0,0.07291923]
[1771698223806,0.07291101,68577.0,68570.0,0.00022]
[1771698224203,0.07291101,68577.0,68570.0,0.07313779]
[1771698227324,0.07291101,68577.0,68570.0,0.00022]
[1771698227816,0.07291194,68576.0,68570.0,0.00022]
[1771698230168,0.07291419,68574.0,68570.0,0.00022]
[1771698232591,0.07311419,68574.0,68570.0,0.00022]
[1771698233707,0.0002,68574.0,68570.0,0.00022]
[1771698235565,0.07311408,68574.0,68570.0,0.00022]
[1771698245109,0.0002,68574.0,68570.0,0.00022]
[1771698245307,0.07311487,68574.0,68570.0,0.00022]
[1771698245736,0.18172742,68571.0,68558.0,0.00022]
[1771698245939,0.02302812,68565.0,68562.0,0.00060825]
[1771698246094,0.07292205,68567.0,68562.0,0.00060825]
[1771698246310,0.09595017,68567.0,68562.0,0.00060825]
[1771698247529,0.07292205,68567.0,68560.0,0.00038]
[1771698247726,0.02448927,68564.0,68560.0,0.00038]
[1771698248310,0.0729266,68563.0,68560.0,0.00038]
[1771698248513,0.09741387,68564.0,68560.0,0.00038]
[1771698249159,0.07292768,68562.0,68556.0,0.00022]
[1771698249462,0.02448927,68559.0,68556.0,0.00014]
[1771698249611,0.07292768,68562.0,68556.0,0.00014]
[1771698251565,0.09741527,68563.0,68556.0,0.00014]
[1771698251748,0.02448927,68563.0,68556.0,0.00014]
[1771698252605,0.07292672,68562.0,68556.0,0.00014]
[1771698253022,0.09741491,68563.0,68556.0,0.073073]
[1771698255363,0.07331035,68567.0,68559.0,0.07292885]
[1771698256544,0.07331035,68567.0,68560.0,0.07292861]
[1771698256545,0.001,68563.0,68560.0,0.07292861]
[1771698256696,0.07331035,68567.0,68560.0,0.07292861]
[1771698256901,0.00038795,68567.0,68564.0,0.07292363]
[1771698257133,0.07291809,68572.0,68563.0,0.07292543]
[1771698257312,0.07291716,68571.0,68564.0,0.07292456]
[1771698259152,0.00036,68570.0,68564.0,0.07292456]
[1771698260056,0.00036,68570.0,68565.0,0.0729233]
[1771698261525,0.02295918,68569.0,68563.0,0.00010179]
[1771698261653,0.00036,68570.0,68563.0,0.00010179]
[1771698262255,0.07327893,68570.0,68563.0,0.00010179]
[1771698262491,0.00036,68570.0,68565.0,0.07292329]
[1771698262702,0.00036,68570.0,68563.0,0.00010179]
[1771698262703,0.0002,68574.0,68564.0,0.29169826]
[1771698262906,0.0729099,68578.0,68570.0,0.07291785]
[1771698263053,0.02311918,68580.0,68570.0,0.07291785]
[1771698263251,0.07291143,68577.0,68570.0,0.07291785]
[1771698264079,0.07291143,68577.0,68569.0,0.07291913]
[1771698264277,0.07283143,68577.0,68569.0,0.07291913]
[1771698265590,0.07283143,68577.0,68570.0,0.07291783]
[1771698265978,0.07283143,68577.0,68569.0,0.07291889]
[1771698266402,0.07283143,68577.0,68570.0,0.000324]
[1771698267391,0.07291186,68576.0,68570.0,0.000324]
[1771698267793,0.07291178,68578.0,68570.0,0.000324]
[1771698267993,0.07291167,68577.0,68570.0,0.000324]
[1771698269440,0.07291183,68576.0,68570.0,0.000324]
[1771698270057,0.07291082,68577.0,68570.0,0.000324]
[1771698272247,0.07291074,68577.0,68570.0,0.000324]
[1771698272647,0.07291271,68576.0,68570.0,0.000324]
[1771698273264,0.07291238,68576.0,68570.0,0.000324]
[1771698276946,0.0003558,68577.0,68570.0,0.000324]
[1771698277170,0.0003558,68577.0,68570.0,0.07324201]
[1771698277805,0.0732669,68577.0,68570.0,0.07324201]
[1771698278630,0.07291188,68576.0,68570.0,0.000324]
[1771698279245,0.07311188,68576.0,68570.0,0.000324]
[1771698281549,0.0002,68576.0,68570.0,0.000324]
[1771698281953,0.07291354,68575.0,68570.0,0.000324]
[1771698282151,0.07291405,68574.0,68570.0,0.000324]
[1771698282557,0.0002,68576.0,68570.0,0.07324133]
[1771698282761,0.0002,68576.0,68570.0,0.000324]
[1771698282939,0.07311202,68576.0,68570.0,0.000324]
[1771698283138,0.07291367,68575.0,68570.0,0.000324]
[1771698283805,0.0002,68576.0,68570.0,0.000324]
[1771698284292,0.0002,68576.0,68570.0,0.07324175]
[1771698286019,0.0002,68576.0,68570.0,0.000544]
[1771698286181,0.0012,68576.0,68570.0,0.000544]
[1771698286388,0.0002,68576.0,68570.0,0.000544]
[1771698286931,0.07291292,68575.0,68570.0,0.000544]
[1771698288894,0.0002,68576.0,68570.0,0.000544]
[1771698290041,0.07291291,68575.0,68570.0,0.000544]
[1771698290755,0.09722658,68574.0,68570.0,0.000544]
[1771698291123,0.07291512,68573.0,68570.0,0.000544]
[1771698291505,0.07291431,68574.0,68566.0,0.07292222]
[1771698292664,0.0243116,68573.0,68570.0,0.00022]
[1771698292868,0.0243116,68573.0,68570.0,7.549e-05]
[1771698294022,0.07291291,68575.0,68570.0,7.549e-05]
[1771698294189,0.09722451,68575.0,68570.0,7.549e-05]
[1771698294755,0.0729158,68573.0,68570.0,7.549e-05]
[1771698296466,0.0739158,68573.0,68570.0,7.549e-05]
[1771698296905,0.0729158,68573.0,68570.0,7.549e-05]
[1771698297087,0.0243116,68575.0,68570.0,7.549e-05]
[1771698298428,0.09722469,68575.0,68570.0,7.549e-05]
[1771698299809,0.0002,68574.0,68570.0,7.549e-05]
[1771698304781,0.0002,68574.0,68570.0,0.07299341]
[1771698304984,0.0002,68574.0,68570.0,7.549e-05]
[1771698305189,0.0002,68574.0,68570.0,0.07299365]
[1771698305366,0.0002,68574.0,68570.0,0.07284911]
[1771698306017,0.0002,68574.0,68570.0,0.07270458]
[1771698306639,0.0002,68574.0,68570.0,0.07292458]
[1771698307657,0.0002,68574.0,68568.0,0.07291953]
[1771698307658,0.0243116,68573.0,68568.0,0.07291953]
[1771698308094,0.0243116,68573.0,68569.0,0.07291896]
[1771698308311,0.0002,68574.0,68569.0,0.07291896]
[1771698310469,0.0002,68574.0,68568.0,0.07291999]
[1771698310675,0.0002,68574.0,68569.0,0.07291923]
[1771698316454,0.0002,68574.0,68568.0,0.00022]
[1771698317478,0.0002,68574.0,68571.0,0.07291708]
[1771698319176,0.02274605,68575.0,68571.0,0.07261028]
[1771698319413,0.02274605,68575.0,68571.0,0.06889028]
[1771698320833,0.0002,68574.0,68571.0,0.06889028]
[1771698321364,0.02337605,68574.0,68571.0,0.06889028]
[1771698324758,0.02337605,68574.0,68571.0,0.0145835]
[1771698324967,0.02337605,68574.0,68570.0,0.07313615]
[1771698325505,0.02337605,68574.0,68571.0,0.07291637]
[1771698326905,0.02337605,68574.0,68571.0,0.0724829]
[1771698328515,0.02337605,68574.0,68572.0,0.07291601]
[1771698328922,0.0002,68574.0,68572.0,0.07291601]
[1771698331080,0.0002,68574.0,68571.0,0.07291678]
[1771698334088,0.0002,68574.0,68571.0,0.07262783]
[1771698334524,0.0002,68574.0,68571.0,0.07273013]
[1771698337342,0.0002,68574.0,68570.0,0.07313615]
[1771698337343,0.02317605,68573.0,68570.0,0.07313615]
[1771698338089,0.02317605,68573.0,68571.0,0.07291645]
[1771698338288,0.02317605,68573.0,68565.0,0.07326518]
[1771698338501,0.02317605,68573.0,68565.0,0.0003436]
[1771698338707,0.02317605,68573.0,68567.0,0.07292125]
[1771698338926,0.02317605,68573.0,68568.0,0.07291988]
[1771698339141,0.02317605,68573.0,68569.0,0.07291882]
[1771698339760,0.02317605,68573.0,68571.0,0.00022]
[1771698345770,0.02419626,68579.0,68572.0,0.0729153]
[1771698345978,0.17011528,68579.0,68572.0,0.0729153]
[1771698346592,0.24302398,68579.0,68572.0,0.07277081]
[1771698346793,0.001,68573.0,68572.0,0.07277081]
[1771698347226,0.0002,68574.0,68572.0,0.07277081]
[1771698347634,0.0002,68574.0,68571.0,0.07313678]
[1771698351344,0.0002,68574.0,68571.0,0.00022]
[1771698352474,0.0002,68574.0,68572.0,0.07291518]
[1771698355815,0.0002,68574.0,68571.0,0.07313692]
[1771698359321,0.0002,68574.0,68571.0,0.07299243]
[1771698362000,0.0002,68574.0,68572.0,0.07291585]
[1771698362232,0.00016,68580.0,68575.0,0.07291247]
[1771698362233,0.14591464,68578.0,68575.0,0.07291247]
[1771698362368,0.00016,68580.0,68574.0,0.0729139]
[1771698362570,0.14607401,68580.0,68574.0,0.0729139]
[1771698362771,0.00016,68580.0,68574.0,0.0729139]
[1771698363969,0.07306759,68580.0,68573.0,0.07291479]
[1771698364170,0.001,68578.0,68573.0,0.07291479]
[1771698364356,0.07306759,68580.0,68573.0,0.07291479]
[1771698364757,0.00016,68580.0,68573.0,0.07291479]
[1771698365385,0.00016,68580.0,68571.0,7.551e-05]
[1771698365386,0.07305792,68590.0,68572.0,0.02303704]
[1771698365603,0.07289994,68588.0,68580.0,0.07290716]
[1771698366220,0.07302367,68589.0,68581.0,0.07290623]
[1771698366454,0.0001236,68589.0,68581.0,0.07290623]
[1771698366657,0.0001236,68589.0,68582.0,0.07290542]
[1771698366824,0.0001236,68589.0,68583.0,0.07290413]
[1771698368348,0.0001236,68589.0,68584.0,0.07290237]
[1771698369562,0.00019148,68589.0,68584.0,0.07290237]
[1771698371897,0.00019148,68589.0,68583.0,0.07290413]
[1771698372404,0.00039148,68589.0,68583.0,0.07290413]
[1771698374836,0.00039148,68589.0,68582.0,0.07290524]
[1771698379254,0.07328948,68589.0,68582.0,0.07290524]
[1771698379578,0.00039148,68589.0,68582.0,0.07290524]
[1771698379758,0.00039148,68589.0,68583.0,0.0729037]
[1771698379923,0.00039148,68589.0,68582.0,0.07290507]
[1771698380259,0.00039148,68589.0,68583.0,0.07290383]
[1771698381695,0.00039148,68589.0,68582.0,0.0729051]